bitfinex/quotes_SOLUSD_20250210
["timestamp","ask_amount","ask_price","bid_price","bid_amount"]
[1739186346951,0.937,204.41,204.37,8.683]
[1739186347150,0.937,204.41,204.38,8.97245096]
[1739186348461,1.237,204.43,204.4,13.86475096]
[1739186348750,1.237,204.43,204.4,4.8923]
[1739186349841,0.937,204.43,204.37,41.01785096]
[1739186350027,0.937,204.43,204.38,4.8928]
[1739186350654,0.937,204.43,204.39,8.97245096]
[1739186351353,0.937,204.43,204.38,17.1249]
[1739186352057,0.937,204.41,204.38,17.1249]
[1739186353056,8.72780093,204.44,204.38,17.1249]
[1739186353433,0.063,204.46,204.43,8.97245096]
[1739186353627,0.063,204.46,204.44,8.97245096]
[1739186353829,0.063,204.46,204.43,8.97245096]
[1739186354035,0.063,204.46,204.42,8.97245096]
[1739186354549,0.063,204.46,204.43,4.8916]
[1739186356247,0.063,204.46,204.41,41.20265096]
[1739186356553,0.063,204.46,204.42,4.8918]
[1739186357060,9.03545096,204.46,204.42,4.8918]
[1739186357741,0.063,204.46,204.42,4.8918]
[1739186358549,9.03545096,204.46,204.42,4.9218]
[1739186358745,0.3,204.45,204.42,4.9218]
[1739186359853,0.3,204.44,204.42,0.03]
[1739186361957,9.27245096,204.44,204.42,0.03]
[1739186363438,0.3,204.44,204.42,0.03]
[1739186366839,0.3,204.44,204.42,29.00245096]
[1739186367069,0.3,204.44,204.42,20.03]
[1739186367551,0.3,204.44,204.42,29.00245096]
[1739186367755,0.3,204.44,204.43,4.8916]
[1739186368832,0.063,204.46,204.43,4.8916]
[1739186370653,0.063,204.46,204.44,8.94678396]
[1739186371342,91.29028396,204.51,204.44,8.94678396]
[1739186372262,8.94678396,204.5,204.45,4.8911]
[1739186373057,8.94678396,204.48,204.45,4.8911]
[1739186374044,8.94678396,204.5,204.45,4.8911]
[1739186374247,8.94678396,204.52,204.45,17.119]
[1739186374457,89.94678396,204.53,204.45,26.06578396]
[1739186374664,81.0,204.53,204.46,8.94678396]
[1739186374852,81.0,204.53,204.47,8.94678396]
[1739186375864,0.063,204.54,204.48,8.94678396]
[1739186376167,0.063,204.54,204.5,8.94678396]
[1739186376375,0.063,204.54,204.51,13.83648396]
[1739186377164,0.063,204.54,204.52,13.41184853]
[1739186377365,0.063,204.54,204.51,13.83648396]
[1739186379665,0.063,204.54,204.51,4.8897]
[1739186380560,0.063,204.54,204.52,20.0]
[1739186382552,0.063,204.54,204.53,4.8892]
[1739186384669,89.94678396,204.59,204.53,17.1123]
[1739186384974,81.0,204.59,204.54,8.94678396]
[1739186385176,81.0,204.59,204.53,26.05908396]
[1739186385674,0.063,204.6,204.56,8.94678396]
[1739186385853,0.063,204.6,204.57,8.94678396]
[1739186386672,0.063,204.6,204.58,4.888]
[1739186387448,0.063,204.6,204.59,20.0]
[1739186387773,0.063,204.65,204.61,20.0]
[1739186387963,0.063,204.65,204.61,28.94678396]
[1739186388165,0.063,204.65,204.63,20.0]
[1739186388479,0.063,204.65,204.6,8.94678396]
[1739186388659,9.00978396,204.65,204.61,4.8873]
[1739186390576,0.063,204.65,204.61,4.8873]
[1739186390750,0.063,204.65,204.6,4.8875]
[1739186391370,9.00978396,204.65,204.6,4.8875]
[1739186392466,0.063,204.65,204.6,4.8875]
[1739186395375,5.71765695,204.64,204.6,4.8875]
[1739186395562,5.71765695,204.61,204.6,4.8875]
[1739186395962,5.71765695,204.61,204.58,20.0]
[1739186396178,5.71765695,204.61,204.59,4.8877]
[1739186396570,5.71765695,204.61,204.56,4.8885]
[1739186396777,5.71765695,204.57,204.55,4.8887]
[1739186396981,5.71765695,204.57,204.54,63.31786218]
[1739186398064,5.71765695,204.59,204.54,63.31786218]
[1739186398263,81.0,204.6,204.54,32.6280512]
[1739186398883,5.71765695,204.59,204.54,32.6280512]
[1739186399692,81.0,204.6,204.54,44.8505512]
[1739186400068,5.71765695,204.57,204.54,32.6280512]
[1739186400991,5.71765695,204.57,204.54,27.7391512]
[1739186401281,5.71765695,204.55,204.54,27.7391512]
[1739186402676,5.71765695,204.56,204.54,32.6281512]
[1739186402988,5.71765695,204.57,204.54,32.6281512]
[1739186403284,5.71765695,204.56,204.54,27.7391512]
[1739186403498,5.71765695,204.55,204.54,27.7391512]
[1739186405177,5.71765695,204.57,204.54,32.6281512]
[1739186405378,5.71765695,204.58,204.54,32.6281512]
[1739186405585,5.71765695,204.56,204.54,32.6281512]
[1739186406275,5.71765695,204.56,204.54,32.6581512]
[1739186406477,5.71765695,204.58,204.54,32.6581512]
[1739186407186,81.063,204.6,204.54,27.7691512]
[1739186407187,5.71765695,204.56,204.54,27.7691512]
[1739186408692,5.71765695,204.56,204.54,0.03]
[1739186408890,6.63455901,204.56,204.54,0.03]
[1739186409190,5.71765695,204.56,204.54,0.03]
[1739186409392,81.0,204.55,204.54,0.03]
[1739186409571,86.72471117,204.55,204.54,0.03]
[1739186410383,87.64160377,204.55,204.54,0.03]
[1739186410579,89.94544624,204.55,204.54,0.03]
[1739186412984,81.0,204.55,204.54,0.03]
[1739186415093,8.94544624,204.59,204.54,8.97544624]
[1739186415094,81.0,204.59,204.54,8.97544624]
[1739186415295,81.0,204.59,204.56,8.94544624]
[1739186415483,0.063,204.6,204.58,8.94544624]
[1739186416379,0.063,204.6,204.59,8.94544624]
[1739186417274,0.063,204.6,204.59,13.83324624]
[1739186417691,0.063,204.65,204.59,26.30372624]
[1739186417999,0.063,204.65,204.63,8.94544624]
[1739186418579,0.063,204.65,204.64,8.94544624]
[1739186419392,0.063,204.65,204.64,13.83204624]
[1739186422682,0.063,204.65,204.64,15.04401659]
[1739186424485,0.0001,204.65,204.64,15.04401659]
[1739186427200,0.0431,204.67,204.66,20.0]
[1739186427393,0.0431,204.67,204.66,28.94544624]
[1739186428301,0.0431,204.67,204.66,8.94544624]
[1739186428524,0.0431,204.67,204.64,13.83204624]
[1739186430194,0.0431,204.67,204.64,4.8866]
[1739186430690,0.0431,204.67,204.62,4.8871]
[1739186431886,0.0431,204.67,204.62,13.83254624]
[1739186434501,0.0431,204.67,204.64,8.94544624]
[1739186434718,0.0431,204.67,204.63,8.94544624]
[1739186435016,8.98854624,204.67,204.62,4.8871]
[1739186436209,8.94544624,204.65,204.6,4.8875]
[1739186436389,8.94544624,204.63,204.59,0.03]
[1739186436589,8.94544624,204.61,204.59,0.03]
[1739186436790,89.94544624,204.62,204.59,0.03]
[1739186437295,81.0,204.62,204.59,4.9176]
[1739186437903,81.0,204.62,204.59,0.03]
[1739186440301,8.94544624,204.61,204.59,0.03]
[1739186441024,96.01804853,204.6,204.59,0.03]
[1739186441516,96.26902853,204.6,204.59,0.03]
[1739186441810,15.26902853,204.6,204.59,0.03]
[1739186442011,8.94544624,204.55,204.54,0.03]
[1739186442314,8.94544624,204.57,204.54,0.03]
[1739186445699,8.94201335,204.58,204.54,0.03]
[1739186446513,81.0,204.57,204.54,0.03]
[1739186446717,81.0,204.57,204.54,5.75088595]
[1739186447516,81.0,204.57,204.56,5.72088595]
[1739186449009,81.0,204.57,204.56,10.60938595]
[1739186449921,64.0066168,204.57,204.56,10.60938595]
[1739186450925,64.0066168,204.64,204.56,10.60938595]
[1739186451125,64.0066168,204.63,204.58,5.72088595]
[1739186453424,64.0066168,204.63,204.59,4.8878]
[1739186453835,5.72088595,204.62,204.56,4.8885]
[1739186455811,5.72088595,204.58,204.54,0.03]
[1739186456011,64.0066168,204.57,204.54,0.03]
[1739186456311,64.0066168,204.56,204.54,4.9189]
[1739186457341,64.0066168,204.56,204.54,0.03]
[1739186457640,64.0066168,204.55,204.54,0.03]
[1739186460216,69.72750275,204.55,204.54,0.03]
[1739186460822,64.0066168,204.55,204.54,0.03]
[1739186462734,5.72088595,204.57,204.54,0.03]
[1739186463544,5.72088595,204.55,204.54,0.03]
[1739186467845,7.31688595,204.57,204.54,0.03]
[1739186469252,5.72088595,204.55,204.54,0.03]
[1739186471141,7.31688595,204.57,204.54,0.03]
[1739186471342,5.72088595,204.59,204.54,0.03]
[1739186471857,5.72088595,204.61,204.54,0.03]
[1739186472079,5.78388595,204.63,204.56,5.72088595]
[1739186472433,0.063,204.63,204.56,5.72088595]
[1739186472751,81.0,204.58,204.57,5.72088595]
[1739186473127,81.0,204.58,204.57,4.8883]
[1739186473367,81.0,204.58,204.54,5.75088595]
[1739186473590,81.0,204.58,204.54,0.03]
[1739186474139,87.63765166,204.57,204.54,0.03]
[1739186474436,5.72088595,204.56,204.54,0.03]
[1739186475655,5.72421445,204.56,204.54,0.03]
[1739186475959,81.91682874,204.55,204.54,0.03]
[1739186476552,90.86259465,204.55,204.54,0.03]
[1739186476746,23.27444318,204.55,204.54,0.03]
[1739186476943,23.52542318,204.55,204.54,0.03]
[1739186477147,24.52542318,204.55,204.54,0.03]
[1739186477458,29.41412318,204.55,204.54,0.03]
[1739186477654,30.41412318,204.55,204.54,0.03]
[1739186479059,37.02662318,204.55,204.54,0.03]
[1739186479443,38.28035335,204.55,204.54,0.03]
[1739186479941,38.28035335,204.55,204.45,0.03]
[1739186479942,0.25098,204.5,204.45,0.03]
[1739186480142,8.94576591,204.47,204.45,0.03]
[1739186481041,0.91728076,204.46,204.45,0.03]
[1739186481270,81.91728076,204.46,204.45,0.03]
[1739186481571,81.0,204.46,204.45,0.03]
[1739186482145,103.60859444,204.46,204.45,0.03]
[1739186482336,104.52600856,204.46,204.45,0.03]
[1739186482760,24.52600856,204.46,204.45,0.03]
[1739186483247,29.41690856,204.46,204.45,0.03]
[1739186483660,28.41690856,204.46,204.45,0.03]
[1739186485873,29.41690856,204.46,204.45,0.03]
[1739186487367,35.66282853,204.43,204.42,0.03]
[1739186487564,45.52631519,204.43,204.42,0.03]
[1739186487945,44.52631519,204.43,204.42,0.03]
[1739186488470,45.52631519,204.43,204.42,0.03]
[1739186488850,50.41791519,204.43,204.42,0.03]
[1739186489849,48.41791519,204.43,204.42,0.03]
[1739186490050,43.52631519,204.43,204.42,0.03]
[1739186491461,50.41791519,204.43,204.42,0.03]
[1739186494572,65.12791519,204.43,204.42,0.03]
[1739186495553,21.25098,204.39,204.38,0.03]
[1739186495753,44.52645885,204.39,204.38,0.03]
[1739186495969,59.23645885,204.39,204.38,0.03]
[1739186496169,67.49985885,204.39,204.38,0.03]
[1739186496969,67.49985885,204.39,204.38,0.0001]
[1739186497150,21.25098,204.34,204.33,0.03]
[1739186497353,44.52666667,204.34,204.33,0.03]
[1739186497574,49.42046667,204.34,204.33,0.03]
[1739186500771,43.27568667,204.34,204.33,0.03]
[1739186501597,9.86361605,204.37,204.33,0.03]
[1739186501772,0.91785014,204.37,204.33,0.03]
[1739186501966,0.91772693,204.38,204.33,0.03]
[1739186502284,20.0,204.36,204.33,0.03]
[1739186502966,28.94576591,204.37,204.33,0.03]
[1739186503489,13.41184853,204.37,204.33,0.03]
[1739186503664,20.0,204.36,204.33,0.03]
[1739186503868,13.41184853,204.37,204.33,0.03]
[1739186505487,0.91773272,204.36,204.33,0.03]
[1739186506492,0.91775235,204.37,204.33,0.03]
[1739186507667,22.35761444,204.35,204.33,0.03]
[1739186507869,14.58068637,204.34,204.33,0.03]
[1739186509869,8.94576591,204.35,204.33,0.03]
[1739186510074,8.94576591,204.37,204.33,0.03]
[1739186510269,0.91779753,204.36,204.33,0.03]
[1739186510585,22.35761444,204.35,204.33,0.03]
[1739186510891,0.91791065,204.34,204.33,0.03]
[1739186511389,1.16889065,204.34,204.33,0.03]
[1739186511593,10.1333599,204.34,204.33,0.03]
[1739186512591,13.41184853,204.35,204.33,0.03]
[1739186512592,14.32974294,204.35,204.33,0.03]
[1739186514290,0.25098,204.34,204.33,0.03]
[1739186518995,0.063,204.37,204.33,0.03]
[1739186521072,0.91767615,204.36,204.33,0.03]
[1739186521277,13.41184853,204.35,204.33,0.03]
[1739186521472,23.2925888,204.34,204.33,0.03]
[1739186521787,23.5435688,204.34,204.33,0.03]
[1739186522899,29.4373688,204.34,204.33,0.03]
[1739186523100,30.4373688,204.34,204.33,0.03]
[1739186524573,29.4373688,204.34,204.33,0.03]
[1739186524797,28.4373688,204.34,204.33,0.03]
[1739186525395,23.5435688,204.34,204.33,0.03]
[1739186525711,28.1863888,204.34,204.33,0.03]
[1739186525912,23.5435688,204.34,204.33,0.03]
[1739186526902,14.32973145,204.34,204.33,0.03]
[1739186528506,13.41184853,204.34,204.33,0.03]
[1739186529801,1.23178051,204.37,204.33,0.03]
[1739186530194,13.41184853,204.36,204.33,0.03]
[1739186531802,0.98080051,204.37,204.33,0.03]
[1739186532007,0.063,204.37,204.34,8.96285735]
[1739186532488,0.063,204.37,204.33,0.03]
[1739186533202,0.063,204.37,204.33,8.99285735]
[1739186533395,0.063,204.37,204.35,8.96285735]
[1739186533804,0.063,204.37,204.34,8.96285735]
[1739186534901,81.0,204.36,204.34,8.96285735]
[1739186535108,81.0,204.36,204.35,8.96285735]
[1739186535302,81.0,204.36,204.35,13.85635735]
[1739186539607,81.0,204.36,204.35,13.84544436]
[1739186539907,0.063,204.37,204.35,13.84544436]
[1739186540087,0.063,204.37,204.36,8.95194436]
[1739186540590,0.063,204.37,204.33,17.1591]
[1739186540799,0.063,204.37,204.36,5.7284894]
[1739186541002,81.0,204.44,204.36,5.7284894]
[1739186541211,81.0,204.43,204.41,5.7284894]
[1739186541395,81.0,204.42,204.41,5.7284894]
[1739186541805,81.0,204.42,204.38,5.7284894]
[1739186543304,81.0,204.42,204.38,10.6210894]
[1739186543698,81.0,204.42,204.38,10.62341657]
[1739186544719,81.0,204.42,204.38,13.84696618]
[1739186544901,81.0,204.42,204.39,8.95436618]
[1739186545998,81.0,204.41,204.39,8.95436618]
[1739186546409,81.0,204.41,204.4,8.95436618]
[1739186547113,81.0,204.41,204.4,13.84666618]
[1739186553705,81.0,204.41,204.39,4.8925]
[1739186554212,81.0,204.41,204.38,8.95436618]
[1739186555096,81.0,204.41,204.38,13.84706618]
[1739186555303,81.0,204.41,204.38,4.8927]
[1739186557801,81.0,204.4,204.38,4.8927]
[1739186558204,81.0,204.4,204.39,8.95436618]
[1739186560408,81.0,204.4,204.39,13.84696618]
[1739186563648,81.0,204.4,204.39,8.95259459]
[1739186563823,81.0,204.4,204.39,5.73001009]
[1739186564733,19.28350675,204.45,204.37,5.73001009]
[1739186564734,81.0,204.39,204.37,5.73001009]
[1739186564923,81.91753649,204.39,204.33,5.76001009]
[1739186565121,81.91753649,204.39,204.33,0.03]
[1739186565122,13.41184853,204.36,204.33,0.03]
[1739186565317,0.91777794,204.35,204.33,0.03]
[1739186565518,6.64778803,204.35,204.33,0.03]
[1739186566738,11.54148803,204.35,204.33,0.03]
[1739186569640,81.0,204.34,204.33,0.03]
[1739186572849,24.03565862,204.34,204.33,0.03]
[1739186573047,24.28663862,204.34,204.33,0.03]
[1739186573254,25.20458694,204.34,204.33,0.03]
[1739186574242,1.6318,204.35,204.33,0.03]
[1739186577241,18.30564853,204.34,204.33,0.03]
[1739186577451,25.2044402,204.34,204.33,0.03]
[1739186579728,13.41184853,204.34,204.33,0.03]
[1739186580340,13.41184853,204.35,204.33,0.03]
[1739186581228,1.16876237,204.34,204.33,0.03]
[1739186581423,6.89877246,204.34,204.33,0.03]
[1739186582348,11.79257246,204.34,204.33,0.03]
[1739186582648,6.06256237,204.34,204.33,0.03]
[1739186583450,11.79257246,204.34,204.33,0.03]
[1739186586650,25.20442099,204.34,204.33,0.03]
[1739186587034,20.31062099,204.34,204.33,0.03]
[1739186589034,25.20442099,204.34,204.33,0.03]
[1739186589954,20.31062099,204.34,204.33,0.03]
[1739186590257,25.20442099,204.34,204.33,0.03]
[1739186595260,20.31062099,204.34,204.33,0.03]
[1739186597640,13.41184853,204.34,204.33,0.03]
[1739186597838,0.063,204.37,204.33,5.76001009]
[1739186598270,0.063,204.37,204.33,0.03]
[1739186599352,13.41184853,204.36,204.33,0.03]
[1739186600864,0.063,204.37,204.35,5.73001009]
[1739186601169,0.063,204.37,204.34,5.73001009]
[1739186601467,13.41184853,204.36,204.33,0.03]
[1739186603701,13.41184853,204.34,204.33,0.03]
[1739186605484,0.063,204.37,204.33,0.03]
[1739186605784,0.063,204.37,204.34,5.73001009]
[1739186606676,0.063,204.37,204.35,5.73001009]
[1739186607690,0.063,204.37,204.36,4.8933]
[1739186608055,0.063,204.37,204.36,10.62331009]
[1739186616065,81.0,204.4,204.36,10.62331009]
[1739186616267,81.0,204.39,204.36,4.8933]
[1739186617281,81.0,204.39,204.38,5.73001009]
[1739186618689,81.0,204.39,204.38,10.62281009]
[1739186618881,81.063,204.39,204.38,10.62281009]
[1739186620004,0.063,204.41,204.38,10.62281009]
[1739186620175,0.063,204.41,204.4,5.73001009]
[1739186620496,81.0,204.44,204.4,7.30961009]
[1739186620699,81.0,204.44,204.43,5.73001009]
[1739186620864,0.063,204.45,204.43,5.73001009]
[1739186621059,0.063,204.45,204.42,5.73001009]
[1739186621260,0.063,204.45,204.39,5.73001009]
[1739186621465,0.98035461,204.45,204.39,5.73001009]
[1739186621675,0.063,204.45,204.39,5.73001009]
[1739186621867,0.063,204.45,204.4,5.73001009]
[1739186623269,0.063,204.45,204.41,5.73001009]
[1739186624185,0.063,204.45,204.42,5.73001009]
[1739186624496,13.47484853,204.45,204.4,5.73001009]
[1739186626095,81.0,204.43,204.4,5.73001009]
[1739186628705,81.0,204.43,204.4,10.62221009]
[1739186631593,81.063,204.43,204.4,10.62221009]
[1739186632093,81.0,204.42,204.4,10.62221009]
[1739186642399,0.063,204.43,204.4,11.84962017]
[1739186642609,0.063,204.45,204.44,20.0]
[1739186642783,0.063,204.45,204.44,25.73001009]
[1739186642983,0.0001,204.45,204.44,25.85550009]
[1739186643282,81.0,204.52,204.45,0.12549]
[1739186643497,81.0,204.52,204.51,5.73001009]
[1739186644205,81.0,204.52,204.51,10.61971009]
[1739186645484,81.063,204.58,204.51,22.84401009]
[1739186645685,81.063,204.58,204.55,5.73001009]
[1739186646007,81.063,204.58,204.54,5.73001009]
[1739186646304,81.063,204.58,204.54,10.61901009]
[1739186646495,81.063,204.58,204.56,5.73001009]
[1739186648012,0.063,204.58,204.57,5.73001009]
[1739186650003,0.063,204.58,204.57,10.61831009]
[1739186655306,0.063,204.62,204.57,10.61831009]
[1739186655515,0.063,204.62,204.61,5.73001009]
[1739186658027,0.063,204.62,204.6,5.73001009]
[1739186658208,0.063,204.62,204.59,5.73001009]
[1739186658525,0.063,204.62,204.6,5.73001009]
[1739186659021,0.063,204.62,204.61,5.73001009]
[1739186660326,0.063,204.62,204.61,10.61731009]
[1739186664921,0.063,204.62,204.61,11.85165336]
[1739186665303,0.063,204.62,204.61,10.61731009]
[1739186670108,0.063,204.62,204.6,5.73001009]
[1739186671025,0.063,204.62,204.6,10.61731009]
[1739186671708,0.063,204.62,204.61,5.73001009]
[1739186673226,0.0001,204.62,204.61,10.74280009]
[1739186674130,0.0001,204.63,204.62,0.12549]
[1739186674334,0.0001,204.63,204.62,5.85550009]
[1739186674625,0.0001,204.63,204.62,5.98099009]
[1739186675209,0.0001,204.63,204.62,10.86809009]
[1739186675410,0.0001,204.63,204.62,10.61711009]
[1739186677707,0.0001,204.63,204.62,25.50558847]
[1739186678926,0.0001,204.63,204.62,30.39268847]
[1739186679334,0.0001,204.63,204.62,30.51817847]
[1739186679543,0.0001,204.63,204.62,30.39268847]
[1739186688809,0.0001,204.63,204.62,10.39268847]
[1739186689016,0.0001,204.63,204.61,4.9172]
[1739186689216,0.0001,204.63,204.61,0.03]
[1739186690451,0.0001,204.63,204.61,4.9173]
[1739186690814,0.0001,204.63,204.61,10.42288847]
[1739186695260,0.023,204.66,204.65,2.25098]
[1739186695414,0.063,204.75,204.65,21.73255816]
[1739186695620,0.063,204.75,204.74,5.50558847]
[1739186697435,0.063,204.75,204.74,10.38978847]
[1739186699327,0.063,204.75,204.74,5.50558847]
[1739186699737,0.063,204.75,204.74,10.38978847]
[1739186700148,0.063,204.75,204.74,5.50558847]
[1739186701844,0.063,204.75,204.74,8.59668881]
[1739186703757,0.063,204.75,204.72,8.59668881]
[1739186704546,13.41184853,204.73,204.68,4.8856]
[1739186704748,13.41184853,204.71,204.68,8.59668881]
[1739186705161,81.0,204.72,204.7,8.59668881]
[1739186705637,81.0,204.72,204.7,13.48178881]
[1739186708147,0.063,204.75,204.71,8.59668881]
[1739186708350,0.063,204.75,204.73,8.59668881]
[1739186710042,0.063,204.75,204.73,13.48098881]
[1739186712640,0.03,204.96,204.87,1.0]
[1739186712962,0.03,204.96,204.95,8.59668881]
[1739186721372,0.03,204.96,204.94,8.59668881]
[1739186721962,0.03,204.96,204.95,8.59668881]
[1739186722948,0.03,204.96,204.94,8.59668881]
[1739186724471,0.03,204.96,204.93,8.59668881]
[1739186724695,0.03,204.96,204.86,4.8812]
[1739186724696,15.03354853,204.96,204.92,8.59668881]
[1739186724869,13.41184853,204.94,204.92,8.59668881]
[1739186725174,13.41184853,204.94,204.91,8.59668881]
[1739186725175,81.0,204.93,204.91,8.59668881]
[1739186725356,81.91514914,204.93,204.91,8.59668881]
[1739186725772,13.41184853,204.92,204.9,8.59668881]
[1739186725949,13.41184853,204.9,204.88,8.59668881]
[1739186726286,81.0,204.89,204.88,8.59668881]
[1739186726663,81.0,204.89,204.87,8.59668881]
[1739186726664,85.8806,204.89,204.87,8.59668881]
[1739186726867,13.41184853,204.88,204.87,8.59668881]
[1739186727259,13.41184853,204.88,204.86,8.59668881]
[1739186728265,4.8811,204.87,204.86,8.59668881]
[1739186728830,18.29294853,204.87,204.86,8.59668881]
[1739186728957,18.29294853,204.87,204.85,8.59668881]
[1739186729264,13.41184853,204.86,204.85,8.59668881]
[1739186729467,96.91903732,204.86,204.8,8.59668881]
[1739186729674,13.41184853,204.84,204.79,8.59668881]
[1739186729858,13.41184853,204.82,204.79,8.59668881]
[1739186730269,18.29424853,204.82,204.79,8.59668881]
[1739186730477,0.91568176,204.81,204.78,8.59668881]
[1739186730663,13.41184853,204.8,204.77,8.59668881]
[1739186730860,13.41184853,204.8,204.76,8.59668881]
[1739186731181,13.41184853,204.78,204.74,8.59668881]
[1739186731366,9.59668881,204.81,204.74,8.59668881]
[1739186731367,13.41184853,204.76,204.74,8.59668881]
[1739186733084,13.41184853,204.74,204.73,8.59668881]
[1739186733277,14.32787817,204.74,204.72,0.063]
[1739186734214,13.41184853,204.74,204.72,8.65968881]
[1739186734904,13.41184853,204.74,204.73,8.59668881]
[1739186737886,13.41184853,204.74,204.72,0.063]
[1739186737887,81.0,204.73,204.72,0.063]
[1739186738275,85.8844,204.73,204.72,0.063]
[1739186738476,4.8844,204.73,204.72,0.063]
[1739186738682,13.41184853,204.73,204.72,0.063]
[1739186739280,19.21210903,204.74,204.72,0.063]
[1739186739682,39.21210903,204.74,204.72,0.063]
[1739186741075,13.66282853,204.73,204.72,0.063]
[1739186741278,14.66282853,204.73,204.72,0.063]
[1739186742707,28.14391734,204.73,204.72,0.063]
[1739186743496,19.54722853,204.73,204.72,0.063]
[1739186745314,13.66282853,204.68,204.62,8.65968881]
[1739186745521,81.91641143,204.67,204.62,8.65968881]
[1739186746017,13.66282853,204.66,204.62,8.65968881]
[1739186746184,0.91647613,204.65,204.62,8.65968881]
[1739186746385,13.41184853,204.64,204.62,8.65968881]
[1739186746781,0.91647613,204.65,204.62,8.65968881]
[1739186746980,81.91644976,204.67,204.62,8.65968881]
[1739186747411,13.41184853,204.66,204.62,8.65968881]
[1739186747628,13.41184853,204.64,204.62,0.063]
[1739186747926,0.91661108,204.63,204.62,0.063]
[1739186748922,5.80341108,204.63,204.62,0.063]
[1739186749927,19.46623961,204.63,204.62,0.063]
[1739186750629,29.06292842,204.63,204.62,0.063]
[1739186751297,43.76292842,204.63,204.62,0.063]
[1739186751898,28.06292842,204.63,204.62,0.063]
[1739186752133,14.57943961,204.63,204.62,0.063]
[1739186752339,14.32845961,204.63,204.62,0.063]
[1739186752630,13.41184853,204.63,204.62,8.65968881]
[1739186753415,0.91651368,204.68,204.62,13.54678881]
[1739186753622,0.91651368,204.68,204.64,8.59668881]
[1739186753932,13.41184853,204.66,204.64,8.59668881]
[1739186755439,13.41184853,204.66,204.64,13.48308881]
[1739186755634,81.0,204.67,204.64,13.48308881]
[1739186755931,81.0,204.67,204.66,8.59668881]
[1739186757113,13.41184853,204.72,204.66,8.59668881]
[1739186757436,0.91607006,204.71,204.68,8.59668881]
[1739186758336,13.41184853,204.7,204.68,8.59668881]
[1739186759010,13.66282853,204.71,204.66,8.59668881]
[1739186759235,0.91629687,204.7,204.65,8.59668881]
[1739186760430,0.25098,204.67,204.63,8.59668881]
[1739186760628,13.41184853,204.65,204.62,0.063]
[1739186760817,13.41184853,204.63,204.62,0.063]
[1739186763043,14.32835591,204.65,204.62,0.063]
[1739186763244,13.41184853,204.64,204.62,0.063]
[1739186763942,14.32835468,204.63,204.62,0.063]
[1739186764836,0.91655313,204.66,204.62,0.063]
[1739186765141,0.91649352,204.69,204.65,8.59668881]
[1739186765330,0.91649352,204.69,204.67,8.59668881]
[1739186765864,5.8013657,204.71,204.67,8.59668881]
[1739186766049,20.0,204.71,204.7,8.59668881]
[1739186766823,0.03,204.72,204.7,8.59668881]
[1739186767022,0.03,204.72,204.71,8.59668881]
[1739186767760,0.03,204.72,204.71,13.48158881]
[1739186768452,0.03,204.72,204.71,22.07827762]
[1739186769146,0.03,204.72,204.71,8.59668881]
[1739186769452,0.03,204.72,204.71,13.48158881]
[1739186769658,0.03,204.72,204.71,22.07827762]
[1739186770458,0.03,204.72,204.71,8.59668881]
[1739186771063,0.03,204.72,204.71,22.07827762]
[1739186772236,13.41184853,204.8,204.71,22.07827762]
[1739186772436,19.21040178,204.8,204.77,8.59668881]
[1739186772734,13.41184853,204.78,204.77,8.59668881]
[1739186773255,13.41184853,204.78,204.75,8.59668881]
[1739186773558,14.32776066,204.78,204.75,8.59668881]
[1739186773768,4.8835,204.77,204.75,8.59668881]
[1739186773937,4.8835,204.77,204.64,6.1724]
[1739186773938,94.41184853,204.76,204.71,8.59668881]
[1739186774140,13.41184853,204.74,204.69,8.59668881]
[1739186774357,13.41184853,204.72,204.69,8.59668881]